[Event "*** Qualifier 2: Titled Tuesday 3|2 Blitz"]
[Site "Chess.com"]
[Date "2017.04.11"]
[Round "1"]
[White "Ilja_Semjonovs"]
[Black "Blitzstream"]
[Result "0-1"]
[WhiteElo "2169"]
[BlackElo "2486"]
[TimeControl "180+2"]
[EndTime "13:03:21 PDT"]
[Termination "Blitzstream won by resignation"]

1. e4 {[%clk 0:03:02]} 1... d5 {[%clk 0:03:00.8]} 2. exd5 {[%clk 0:03:02.6]}
2... Qxd5 {[%clk 0:03:02.7]} 3. Nc3 {[%clk 0:03:03.4]} 3... Qa5 {[%clk
0:03:03.2]} 4. d4 {[%clk 0:03:04.5]} 4... Nf6 {[%clk 0:03:03.9]} 5. Nf3 {[%clk
0:03:05.7]} 5... Nc6 {[%clk 0:03:03.9]} 6. h3 {[%clk 0:03:06.6]} 6... Bf5 {[%clk
0:03:00.8]} 7. g4 {[%clk 0:03:07.2]} 7... Bg6 {[%clk 0:02:58.2]} 8. Bd2 {[%clk
0:02:55.3]} 8... O-O-O {[%clk 0:02:55.3]} 9. Nb5 {[%clk 0:02:26.3]} 9... Qb6
{[%clk 0:02:54.2]} 10. c3 {[%clk 0:02:27.7]} 10... e5 {[%clk 0:02:43.4]} 11.
Nxe5 {[%clk 0:02:14.1]} 11... Nxe5 {[%clk 0:02:42.9]} 12. dxe5 {[%clk
0:02:15.3]} 12... Ne4 {[%clk 0:02:44.5]} 13. Nd4 {[%clk 0:02:15.6]} 13... Nxd2
{[%clk 0:02:37.2]} 14. Qxd2 {[%clk 0:02:14.7]} 14... c5 {[%clk 0:02:38.8]} 15.
f4 {[%clk 0:01:56.8]} 15... Be4 {[%clk 0:02:32.5]} 16. Bg2 {[%clk 0:01:57.8]}
16... Bxg2 {[%clk 0:02:31.7]} 17. Qxg2 {[%clk 0:01:58.8]} 17... cxd4 {[%clk
0:02:33]} 18. O-O-O {[%clk 0:01:59.6]} 18... Bc5 {[%clk 0:02:29.1]} 19. Qe4
{[%clk 0:01:54.8]} 19... dxc3 {[%clk 0:02:28]} 20. bxc3 {[%clk 0:01:56]} 20...
Ba3+ {[%clk 0:02:27]} 0-1

[Event "*** Qualifier 2: Titled Tuesday 3|2 Blitz"]
[Site "Chess.com"]
[Date "2017.04.11"]
[Round "1"]
[White "RobertoJBM"]
[Black "XiaoKangZhong"]
[Result "1-0"]
[WhiteElo "2400"]
[BlackElo "1940"]
[TimeControl "180+2"]
[EndTime "13:03:29 PDT"]
[Termination "RobertoJBM won by resignation"]

1. d4 {[%clk 0:03:02]} 1... Nf6 {[%clk 0:03:00.6]} 2. c3 {[%clk 0:03:02.9]} 2...
g6 {[%clk 0:02:59.5]} 3. Bf4 {[%clk 0:03:02.2]} 3... Bg7 {[%clk 0:02:59.9]} 4.
Nd2 {[%clk 0:03:03.3]} 4... d5 {[%clk 0:03:00.6]} 5. Ngf3 {[%clk 0:03:02.6]}
5... O-O {[%clk 0:03:00.6]} 6. e3 {[%clk 0:03:03.4]} 6... b6 {[%clk 0:03:01.5]}
7. h3 {[%clk 0:03:01]} 7... Bb7 {[%clk 0:03:01.4]} 8. Bd3 {[%clk 0:03:01.5]}
8... Nbd7 {[%clk 0:03:02]} 9. O-O {[%clk 0:03:02.4]} 9... Rc8 {[%clk 0:03:02.8]}
10. Qe2 {[%clk 0:03:03.5]} 10... c5 {[%clk 0:03:03.2]} 11. Rfe1 {[%clk
0:03:01.4]} 11... Re8 {[%clk 0:03:00.4]} 12. Rad1 {[%clk 0:02:59.9]} 12... e6
{[%clk 0:03:00]} 13. Bh2 {[%clk 0:02:51.8]} 13... c4 {[%clk 0:03:00.6]} 14. Bc2
{[%clk 0:02:52.3]} 14... b5 {[%clk 0:03:01.3]} 15. e4 {[%clk 0:02:52.9]} 15...
Nb6 {[%clk 0:02:59]} 16. e5 {[%clk 0:02:50.6]} 16... Nfd7 {[%clk 0:02:59.4]} 17.
h4 {[%clk 0:02:51.5]} 17... h5 {[%clk 0:02:58.8]} 18. Bf4 {[%clk 0:02:50.9]}
18... a5 {[%clk 0:02:55.7]} 19. Qe3 {[%clk 0:02:50.9]} 19... b4 {[%clk
0:02:52.9]} 20. Bg5 {[%clk 0:02:51.7]} 20... Qc7 {[%clk 0:02:50]} 21. Bh6 {[%clk
0:02:52.4]} 21... Nf8 {[%clk 0:02:32.6]} 22. Bxg7 {[%clk 0:02:52.2]} 22... Kxg7
{[%clk 0:02:33.7]} 23. Ng5 {[%clk 0:02:53.6]} 23... Nh7 {[%clk 0:02:24.5]} 24.
Nxh7 {[%clk 0:02:52]} 24... Kxh7 {[%clk 0:02:25.3]} 25. Qg5 {[%clk 0:02:53.4]}
25... Kh8 {[%clk 0:02:20.9]} 26. Qh6+ {[%clk 0:02:52.4]} 26... Kg8 {[%clk
0:02:21.8]} 27. Re3 {[%clk 0:02:53.9]} 27... Qe7 {[%clk 0:02:21]} 28. Rg3 {[%clk
0:02:54]} 28... Qf8 {[%clk 0:02:17.9]} 29. Qxh5 {[%clk 0:02:54.4]} 29... Qg7
{[%clk 0:02:18.1]} 30. Bxg6 {[%clk 0:02:54.6]} 30... fxg6 {[%clk 0:02:13.6]} 31.
Rxg6 {[%clk 0:02:56.5]} 31... Rc7 {[%clk 0:02:14.8]} 32. Rxg7+ {[%clk 0:02:57]}
32... Rxg7 {[%clk 0:02:15.5]} 33. Qxe8+ {[%clk 0:02:57.6]} 1-0

[Event "*** Qualifier 2: Titled Tuesday 3|2 Blitz"]
[Site "Chess.com"]
[Date "2017.04.11"]
[Round "1"]
[White "Mepetmepe"]
[Black "Keranke"]
[Result "0-1"]
[WhiteElo "2362"]
[BlackElo "2668"]
[TimeControl "180+2"]
[EndTime "13:04:21 PDT"]
[Termination "Keranke won by resignation"]

1. Nf3 {[%clk 0:03:02]} 1... g6 {[%clk 0:02:58.5]} 2. d4 {[%clk 0:03:02.7]} 2...
Bg7 {[%clk 0:02:59.9]} 3. c4 {[%clk 0:03:03.8]} 3... Nf6 {[%clk 0:03:01.5]} 4.
Nc3 {[%clk 0:03:04.9]} 4... O-O {[%clk 0:03:03]} 5. e4 {[%clk 0:03:05.2]} 5...
d6 {[%clk 0:03:04.3]} 6. h3 {[%clk 0:03:06.5]} 6... a6 {[%clk 0:03:05.1]} 7. Be3
{[%clk 0:03:06]} 7... c5 {[%clk 0:03:06]} 8. d5 {[%clk 0:02:59.4]} 8... b5
{[%clk 0:03:04.1]} 9. Qc2 {[%clk 0:03:00.5]} 9... Qa5 {[%clk 0:03:01.4]} 10. Bd2
{[%clk 0:02:51.3]} 10... b4 {[%clk 0:02:57.9]} 11. Nd1 {[%clk 0:02:51.7]} 11...
e6 {[%clk 0:02:55]} 12. Be2 {[%clk 0:02:48]} 12... exd5 {[%clk 0:02:55.5]} 13.
exd5 {[%clk 0:02:49.9]} 13... Bf5 {[%clk 0:02:53.4]} 14. Qc1 {[%clk 0:02:50]}
14... Ne4 {[%clk 0:02:49.7]} 15. Ne3 {[%clk 0:02:50]} 15... Nxd2 {[%clk
0:02:47.1]} 16. Qxd2 {[%clk 0:02:51.1]} 16... Bc8 {[%clk 0:02:40.9]} 17. O-O
{[%clk 0:02:52]} 17... Nd7 {[%clk 0:02:41.5]} 18. a3 {[%clk 0:02:45.4]} 18...
Qb6 {[%clk 0:02:32.8]} 19. a4 {[%clk 0:02:30.9]} 19... b3 {[%clk 0:02:29.3]} 20.
Ra3 {[%clk 0:02:13.8]} 20... Rb8 {[%clk 0:02:27]} 21. Rb1 {[%clk 0:02:06.7]}
21... Qb4 {[%clk 0:02:26.2]} 22. Bd3 {[%clk 0:01:51.4]} 22... Ne5 {[%clk
0:02:11.1]} 23. Nxe5 {[%clk 0:01:30.3]} 23... Qxd2 {[%clk 0:02:11.2]} 24. Be2
{[%clk 0:01:32.2]} 24... Bxe5 {[%clk 0:02:10.3]} 0-1

[Event "*** Qualifier 2: Titled Tuesday 3|2 Blitz"]
[Site "Chess.com"]
[Date "2017.04.11"]
[Round "1"]
[White "JaimeSantosLatasa"]
[Black "sorito"]
[Result "0-1"]
[WhiteElo "2536"]
[BlackElo "2287"]
[TimeControl "180+2"]
[EndTime "13:04:27 PDT"]
[Termination "sorito won by resignation"]

1. e4 {[%clk 0:03:02]} 1... d6 {[%clk 0:02:58.8]} 2. d4 {[%clk 0:03:02.2]} 2...
Nf6 {[%clk 0:02:59.6]} 3. Nc3 {[%clk 0:03:03.4]} 3... c6 {[%clk 0:03:00.9]} 4.
f4 {[%clk 0:03:03.9]} 4... Qa5 {[%clk 0:03:01.3]} 5. Bd3 {[%clk 0:03:04]} 5...
e5 {[%clk 0:03:01.7]} 6. Nf3 {[%clk 0:03:04.1]} 6... Bg4 {[%clk 0:03:01.1]} 7.
Be3 {[%clk 0:03:03.6]} 7... Nbd7 {[%clk 0:03:01.8]} 8. h3 {[%clk 0:03:03.3]}
8... Bh5 {[%clk 0:02:59.3]} 9. g4 {[%clk 0:03:01.9]} 9... exf4 {[%clk
0:03:00.1]} 10. Bxf4 {[%clk 0:03:03.8]} 10... Bg6 {[%clk 0:03:01.5]} 11. Qe2
{[%clk 0:03:03.9]} 11... Be7 {[%clk 0:02:53.1]} 12. O-O-O {[%clk 0:03:02.9]}
12... O-O-O {[%clk 0:02:49]} 13. Kb1 {[%clk 0:03:00.1]} 13... Rhe8 {[%clk
0:02:49.5]} 14. Qh2 {[%clk 0:02:59.6]} 14... Nb6 {[%clk 0:02:44.3]} 15. Rhe1
{[%clk 0:02:59.2]} 15... Na4 {[%clk 0:02:41.8]} 16. Nxa4 {[%clk 0:02:57.7]}
16... Qxa4 {[%clk 0:02:43.1]} 17. c3 {[%clk 0:02:55.6]} 17... Bf8 {[%clk
0:02:43.4]} 18. e5 {[%clk 0:02:52.2]} 18... Bxd3+ {[%clk 0:02:39.9]} 19. Rxd3
{[%clk 0:02:54.1]} 19... Nd5 {[%clk 0:02:12.6]} 20. Bg5 {[%clk 0:02:49.2]} 20...
f6 {[%clk 0:02:12.4]} 21. exf6 {[%clk 0:02:49.6]} 21... gxf6 {[%clk 0:02:13.8]}
22. Bc1 {[%clk 0:02:49]} 22... Qb5 {[%clk 0:02:13.4]} 23. Qc2 {[%clk 0:02:46]}
23... Rxe1 {[%clk 0:02:12.4]} 24. Nxe1 {[%clk 0:02:47.9]} 24... Re8 {[%clk
0:02:13.2]} 25. Nf3 {[%clk 0:02:42.9]} 25... Nb6 {[%clk 0:02:09.6]} 26. Qd1
{[%clk 0:02:38.5]} 26... h5 {[%clk 0:02:09.8]} 27. Re3 {[%clk 0:02:36.3]} 27...
Rxe3 {[%clk 0:02:09.2]} 28. Bxe3 {[%clk 0:02:38.2]} 28... hxg4 {[%clk
0:02:10.7]} 29. hxg4 {[%clk 0:02:38.9]} 29... Nc4 {[%clk 0:02:10.5]} 30. Bc1
{[%clk 0:02:39.3]} 30... Qd5 {[%clk 0:02:11.5]} 31. b3 {[%clk 0:02:39.2]} 31...
Qe4+ {[%clk 0:02:11.5]} 32. Ka1 {[%clk 0:02:39.9]} 32... Nb6 {[%clk 0:02:12.1]}
33. Nh4 {[%clk 0:02:39]} 33... Nd5 {[%clk 0:02:12.2]} 34. Bd2 {[%clk 0:02:39.1]}
34... Ne3 {[%clk 0:02:10.8]} 35. Bxe3 {[%clk 0:02:37.7]} 35... Qxe3 {[%clk
0:02:12.7]} 36. c4 {[%clk 0:02:35.3]} 36... d5 {[%clk 0:02:10.5]} 37. Nf5 {[%clk
0:02:33.3]} 37... Qc3+ {[%clk 0:02:11.1]} 38. Kb1 {[%clk 0:02:33.7]} 38... Ba3
{[%clk 0:02:11.8]} 0-1

[Event "*** Qualifier 2: Titled Tuesday 3|2 Blitz"]
[Site "Chess.com"]
[Date "2017.04.11"]
[Round "1"]
[White "Aygehovit1992"]
[Black "luisgui16"]
[Result "1-0"]
[WhiteElo "2441"]
[BlackElo "2111"]
[TimeControl "180+2"]
[EndTime "13:04:33 PDT"]
[Termination "Aygehovit1992 won by resignation"]

1. e4 {[%clk 0:03:02]} 1... g6 {[%clk 0:02:59.4]} 2. d4 {[%clk 0:03:01]} 2...
Bg7 {[%clk 0:03:00.7]} 3. Nc3 {[%clk 0:03:00.5]} 3... d6 {[%clk 0:03:01.8]} 4.
Nf3 {[%clk 0:03:01.7]} 4... Nc6 {[%clk 0:03:00.7]} 5. Be2 {[%clk 0:03:02.9]}
5... Bg4 {[%clk 0:03:00.9]} 6. Be3 {[%clk 0:03:04]} 6... Bxf3 {[%clk 0:03:01.8]}
7. Bxf3 {[%clk 0:03:05.3]} 7... e5 {[%clk 0:03:03.3]} 8. d5 {[%clk 0:03:04.6]}
8... Nce7 {[%clk 0:03:04.3]} 9. h4 {[%clk 0:03:02.3]} 9... f5 {[%clk 0:03:04.6]}
10. h5 {[%clk 0:03:02.8]} 10... Bh6 {[%clk 0:02:59.1]} 11. hxg6 {[%clk
0:03:01.1]} 11... hxg6 {[%clk 0:03:01]} 12. Qe2 {[%clk 0:03:00]} 12... Qd7
{[%clk 0:02:50.6]} 13. g4 {[%clk 0:02:53]} 13... O-O-O {[%clk 0:02:43.1]} 14. g5
{[%clk 0:02:50.7]} 14... Bg7 {[%clk 0:02:43.8]} 15. Rxh8 {[%clk 0:02:51.7]}
15... Bxh8 {[%clk 0:02:45.7]} 16. Bxa7 {[%clk 0:02:52.7]} 16... fxe4 {[%clk
0:02:38.8]} 17. Bxe4 {[%clk 0:02:51.6]} 17... Qh3 {[%clk 0:02:39.3]} 18. Be3
{[%clk 0:02:47.2]} 18... Nf5 {[%clk 0:02:38]} 19. O-O-O {[%clk 0:02:45.6]} 19...
Nd4 {[%clk 0:02:36.3]} 20. Qc4 {[%clk 0:02:44.8]} 20... Ne7 {[%clk 0:02:31.3]}
21. Qa4 {[%clk 0:02:41.3]} 21... b6 {[%clk 0:02:31.1]} 22. Rh1 {[%clk
0:02:40.1]} 22... Qg4 {[%clk 0:02:29.6]} 23. Rxh8 {[%clk 0:02:32.1]} 23... Rxh8
{[%clk 0:02:08.4]} 24. Qa8+ {[%clk 0:02:32]} 24... Kd7 {[%clk 0:02:09.8]} 25.
Qxh8 {[%clk 0:02:33.6]} 25... Qg1+ {[%clk 0:01:57.2]} 26. Kd2 {[%clk 0:02:34.1]}
26... Ndf5 {[%clk 0:01:58.3]} 27. Bxf5+ {[%clk 0:02:30.7]} 27... gxf5 {[%clk
0:01:58.5]} 28. Qh3 {[%clk 0:02:22.3]} 28... Kd8 {[%clk 0:01:38.8]} 29. f4
{[%clk 0:02:21.6]} 29... Qb1 {[%clk 0:01:38.1]} 30. Nxb1 {[%clk 0:02:21.7]} 1-0

[Event "*** Qualifier 2: Titled Tuesday 3|2 Blitz"]
[Site "Chess.com"]
[Date "2017.04.11"]
[Round "1"]
[White "ruvat"]
[Black "GrigorGrigorov"]
[Result "0-1"]
[WhiteElo "2205"]
[BlackElo "2498"]
[TimeControl "180+2"]
[EndTime "13:04:39 PDT"]
[Termination "GrigorGrigorov won by resignation"]

1. d4 {[%clk 0:03:01.8]} 1... Nf6 {[%clk 0:03:00.4]} 2. c4 {[%clk 0:03:02.3]}
2... e6 {[%clk 0:02:58.1]} 3. g3 {[%clk 0:03:02.7]} 3... c5 {[%clk 0:02:58.6]}
4. d5 {[%clk 0:03:02.6]} 4... exd5 {[%clk 0:02:59.7]} 5. cxd5 {[%clk 0:03:03.9]}
5... d6 {[%clk 0:03:00.8]} 6. Nc3 {[%clk 0:03:05.1]} 6... g6 {[%clk 0:03:01.3]}
7. Bg2 {[%clk 0:03:06.7]} 7... Bg7 {[%clk 0:03:02.6]} 8. Nf3 {[%clk 0:03:08.3]}
8... O-O {[%clk 0:03:03.7]} 9. O-O {[%clk 0:03:09.9]} 9... a6 {[%clk 0:03:05]}
10. a4 {[%clk 0:03:10.9]} 10... Nbd7 {[%clk 0:03:05]} 11. Bf4 {[%clk 0:03:11.3]}
11... Qe7 {[%clk 0:03:04]} 12. h3 {[%clk 0:03:09.5]} 12... Nh5 {[%clk
0:03:04.6]} 13. Bg5 {[%clk 0:03:09.4]} 13... f6 {[%clk 0:03:03.4]} 14. Bd2
{[%clk 0:03:09.7]} 14... f5 {[%clk 0:03:04.3]} 15. Ng5 {[%clk 0:02:43.4]} 15...
Ne5 {[%clk 0:02:23.6]} 16. Ne6 {[%clk 0:02:39.8]} 16... Bxe6 {[%clk 0:02:23.8]}
17. dxe6 {[%clk 0:02:40.7]} 17... Nf6 {[%clk 0:02:24.4]} 18. Nd5 {[%clk
0:02:34.2]} 18... Nxd5 {[%clk 0:02:23.5]} 19. Bxd5 {[%clk 0:02:36.1]} 19... Nc6
{[%clk 0:02:23.4]} 20. e4 {[%clk 0:02:18.9]} 20... fxe4 {[%clk 0:02:17.4]} 21.
Re1 {[%clk 0:02:09.1]} 21... Bd4 {[%clk 0:02:15.1]} 22. Rxe4 {[%clk 0:01:56.9]}
22... Bxf2+ {[%clk 0:02:15.4]} 23. Kg2 {[%clk 0:01:57.5]} 23... Bd4 {[%clk
0:02:11.5]} 24. Rxd4 {[%clk 0:01:46.8]} 24... Nxd4 {[%clk 0:02:10.6]} 25. Qg4
{[%clk 0:01:40.3]} 25... Rf5 {[%clk 0:02:06.7]} 26. Qe4 {[%clk 0:01:29.2]} 26...
Re5 {[%clk 0:02:04.7]} 0-1

[Event "*** Qualifier 2: Titled Tuesday 3|2 Blitz"]
[Site "Chess.com"]
[Date "2017.04.11"]
[Round "1"]
[White "feigelag"]
[Black "GamayevOleg"]
[Result "1-0"]
[WhiteElo "2140"]
[BlackElo "2408"]
[TimeControl "180+2"]
[EndTime "13:05:00 PDT"]
[Termination "feigelag won by resignation"]

1. d4 {[%clk 0:03:01.9]} 1... g6 {[%clk 0:02:59.8]} 2. c4 {[%clk 0:03:02.4]}
2... Bg7 {[%clk 0:03:01.2]} 3. Nf3 {[%clk 0:03:02.8]} 3... d6 {[%clk 0:03:02.7]}
4. Nc3 {[%clk 0:03:02.2]} 4... Nd7 {[%clk 0:03:02.9]} 5. e4 {[%clk 0:03:01.8]}
5... e5 {[%clk 0:03:03.8]} 6. Be2 {[%clk 0:03:00.2]} 6... Ne7 {[%clk 0:03:04]}
7. O-O {[%clk 0:02:58.4]} 7... O-O {[%clk 0:03:04.9]} 8. Be3 {[%clk 0:02:58.2]}
8... c6 {[%clk 0:03:04.3]} 9. dxe5 {[%clk 0:02:54.1]} 9... Nxe5 {[%clk
0:03:04.8]} 10. Nxe5 {[%clk 0:02:53.3]} 10... dxe5 {[%clk 0:03:06.7]} 11. c5
{[%clk 0:02:50.6]} 11... Be6 {[%clk 0:03:01.7]} 12. Qc2 {[%clk 0:02:46.5]} 12...
Qc7 {[%clk 0:02:59.4]} 13. b4 {[%clk 0:02:45.8]} 13... Rad8 {[%clk 0:02:58.8]}
14. Rfd1 {[%clk 0:02:44.4]} 14... Rxd1+ {[%clk 0:02:59.7]} 15. Rxd1 {[%clk
0:02:44.7]} 15... Rd8 {[%clk 0:03:01.5]} 16. a4 {[%clk 0:02:35.7]} 16... a6
{[%clk 0:03:01]} 17. f3 {[%clk 0:02:32.9]} 17... f6 {[%clk 0:03:01.3]} 18. Nb1
{[%clk 0:02:27.6]} 18... Rxd1+ {[%clk 0:03:00.8]} 19. Qxd1 {[%clk 0:02:28]}
19... Qd7 {[%clk 0:02:58.1]} 20. Qxd7 {[%clk 0:02:27.8]} 20... Bxd7 {[%clk
0:03:00]} 21. Na3 {[%clk 0:02:27.5]} 21... Kf8 {[%clk 0:02:57.6]} 22. Nc4 {[%clk
0:02:26.9]} 22... Nc8 {[%clk 0:02:59]} 23. Na5 {[%clk 0:02:26.6]} 23... Ke7
{[%clk 0:02:46.6]} 24. Nxb7 {[%clk 0:02:27.3]} 24... Bf8 {[%clk 0:02:46.9]} 25.
Bxa6 {[%clk 0:02:27.3]} 25... Na7 {[%clk 0:02:45.1]} 26. Bc4 {[%clk 0:02:25.7]}
26... Bc8 {[%clk 0:02:44.5]} 27. Nd6 {[%clk 0:02:25.9]} 27... Kd7 {[%clk
0:02:39.1]} 28. b5 {[%clk 0:02:15]} 28... cxb5 {[%clk 0:02:39.1]} 29. axb5
{[%clk 0:02:13.2]} 29... Kd8 {[%clk 0:02:35.8]} 30. Nf7+ {[%clk 0:01:58.6]}
30... Ke8 {[%clk 0:02:32.1]} 31. Nd6+ {[%clk 0:01:52.6]} 31... Kd8 {[%clk
0:02:31.6]} 32. Nxc8 {[%clk 0:01:51.9]} 32... Nxc8 {[%clk 0:02:27.4]} 33. b6
{[%clk 0:01:51.9]} 33... Ne7 {[%clk 0:02:28.7]} 34. Bb5 {[%clk 0:01:49.6]} 34...
f5 {[%clk 0:02:28.7]} 35. c6 {[%clk 0:01:48.6]} 35... f4 {[%clk 0:02:25.1]} 36.
c7+ {[%clk 0:01:47.3]} 36... Kc8 {[%clk 0:02:23.6]} 37. Ba6+ {[%clk 0:01:47.5]}
37... Kd7 {[%clk 0:02:24.7]} 38. Bc5 {[%clk 0:01:48.4]} 38... Nc8 {[%clk
0:02:20.7]} 39. Bxc8+ {[%clk 0:01:47.6]} 39... Kxc8 {[%clk 0:02:21.3]} 40. Bxf8
{[%clk 0:01:49.5]} 1-0

[Event "*** Qualifier 2: Titled Tuesday 3|2 Blitz"]
[Site "Chess.com"]
[Date "2017.04.11"]
[Round "1"]
[White "RichardLeyvaP"]
[Black "Sebastian"]
[Result "0-1"]
[WhiteElo "2371"]
[BlackElo "2693"]
[TimeControl "180+2"]
[EndTime "13:05:04 PDT"]
[Termination "Sebastian won by resignation"]

1. e4 {[%clk 0:03:00.6]} 1... e5 {[%clk 0:03:01.2]} 2. Nc3 {[%clk 0:02:59.5]}
2... Nc6 {[%clk 0:03:02.2]} 3. g3 {[%clk 0:03:00.5]} 3... Bc5 {[%clk 0:03:03]}
4. Bg2 {[%clk 0:03:01.5]} 4... d6 {[%clk 0:03:03]} 5. d3 {[%clk 0:03:01.9]} 5...
a6 {[%clk 0:03:03.3]} 6. Nf3 {[%clk 0:03:00.3]} 6... Nge7 {[%clk 0:03:04.3]} 7.
O-O {[%clk 0:02:59.6]} 7... O-O {[%clk 0:03:05.3]} 8. Be3 {[%clk 0:03:00.3]}
8... Bxe3 {[%clk 0:03:03.7]} 9. fxe3 {[%clk 0:03:02.2]} 9... f6 {[%clk 0:02:57]}
10. Nh4 {[%clk 0:03:02.4]} 10... Be6 {[%clk 0:02:49.9]} 11. Nd5 {[%clk
0:02:59.7]} 11... Bf7 {[%clk 0:02:42.4]} 12. Qe2 {[%clk 0:02:51.2]} 12... Nxd5
{[%clk 0:02:40.2]} 13. exd5 {[%clk 0:02:51.8]} 13... Ne7 {[%clk 0:02:42.1]} 14.
c4 {[%clk 0:02:48.4]} 14... c6 {[%clk 0:02:41.6]} 15. e4 {[%clk 0:02:45.3]}
15... b5 {[%clk 0:02:26.4]} 16. b3 {[%clk 0:02:45.1]} 16... bxc4 {[%clk
0:02:23.3]} 17. dxc4 {[%clk 0:02:45.1]} 17... a5 {[%clk 0:02:19.7]} 18. Qe3
{[%clk 0:02:40.1]} 18... Qc7 {[%clk 0:02:14.3]} 19. Rfd1 {[%clk 0:02:38.4]}
19... c5 {[%clk 0:02:05.9]} 20. a4 {[%clk 0:02:33.9]} 20... Rab8 {[%clk
0:02:05.2]} 21. Rd3 {[%clk 0:02:35.4]} 21... Be8 {[%clk 0:02:03.1]} 22. Bh3
{[%clk 0:02:35.7]} 22... Bd7 {[%clk 0:02:03.8]} 23. Bxd7 {[%clk 0:02:36.1]}
23... Qxd7 {[%clk 0:02:05.1]} 24. Rf1 {[%clk 0:02:33.5]} 24... f5 {[%clk
0:02:06.3]} 25. exf5 {[%clk 0:02:31.1]} 25... Nxf5 {[%clk 0:02:07.3]} 26. Nxf5
{[%clk 0:02:32.4]} 26... Rxf5 {[%clk 0:02:09]} 27. Rxf5 {[%clk 0:02:33.6]} 27...
Qxf5 {[%clk 0:02:10.2]} 28. Qf3 {[%clk 0:02:34.8]} 28... Qg6 {[%clk 0:02:09.3]}
29. Re3 {[%clk 0:02:30]} 29... Qb1+ {[%clk 0:01:53.5]} 30. Kg2 {[%clk
0:02:26.9]} 30... Qc2+ {[%clk 0:01:53.9]} 31. Qf2 {[%clk 0:02:22.3]} 31... Qb1
{[%clk 0:01:40]} 32. Qf5 {[%clk 0:02:12.6]} 32... Qxf5 {[%clk 0:01:37.9]} 0-1

[Event "*** Qualifier 2: Titled Tuesday 3|2 Blitz"]
[Site "Chess.com"]
[Date "2017.04.11"]
[Round "1"]
[White "ehrenfeld"]
[Black "Konavets"]
[Result "0-1"]
[WhiteElo "2313"]
[BlackElo "2614"]
[TimeControl "180+2"]
[EndTime "13:05:29 PDT"]
[Termination "Konavets won by resignation"]

1. e4 {[%clk 0:03:02]} 1... e6 {[%clk 0:03:01.1]} 2. d3 {[%clk 0:03:02.4]} 2...
d5 {[%clk 0:03:01.8]} 3. Qe2 {[%clk 0:03:03.4]} 3... d4 {[%clk 0:02:59.7]} 4. f4
{[%clk 0:03:03]} 4... c5 {[%clk 0:03:00.8]} 5. Nf3 {[%clk 0:03:03.8]} 5... Nc6
{[%clk 0:03:02.7]} 6. g3 {[%clk 0:03:05]} 6... Nf6 {[%clk 0:03:03.5]} 7. Bg2
{[%clk 0:03:05.5]} 7... Be7 {[%clk 0:03:04.8]} 8. O-O {[%clk 0:03:05.6]} 8...
O-O {[%clk 0:03:06]} 9. a4 {[%clk 0:03:04.4]} 9... b6 {[%clk 0:03:06.6]} 10. Na3
{[%clk 0:03:04.7]} 10... Ba6 {[%clk 0:03:06.5]} 11. Bd2 {[%clk 0:03:05.4]} 11...
Rc8 {[%clk 0:03:06.8]} 12. Nc4 {[%clk 0:03:02.7]} 12... Ne8 {[%clk 0:03:05.5]}
13. e5 {[%clk 0:03:02.8]} 13... Nc7 {[%clk 0:03:06]} 14. g4 {[%clk 0:02:58.1]}
14... Nd5 {[%clk 0:03:03.8]} 15. f5 {[%clk 0:02:57]} 15... Re8 {[%clk
0:03:03.7]} 16. Rae1 {[%clk 0:02:35.4]} 16... Ncb4 {[%clk 0:03:02.6]} 17. Bc1
{[%clk 0:02:33.5]} 17... Qd7 {[%clk 0:03:00.9]} 18. f6 {[%clk 0:02:33.4]} 18...
Bf8 {[%clk 0:02:57.1]} 19. fxg7 {[%clk 0:02:33.4]} 19... Bxg7 {[%clk 0:02:54.8]}
20. Ng5 {[%clk 0:02:34.4]} 20... Rf8 {[%clk 0:02:54.7]} 21. Qe4 {[%clk
0:02:31.9]} 21... f5 {[%clk 0:02:51.3]} 22. exf6 {[%clk 0:02:15.9]} 22... Nxf6
{[%clk 0:02:36.5]} 23. Rxf6 {[%clk 0:02:09.8]} 23... Bxf6 {[%clk 0:02:28.8]} 24.
Nxe6 {[%clk 0:02:05]} 24... Rf7 {[%clk 0:01:41.6]} 25. g5 {[%clk 0:02:01.9]}
25... Bg7 {[%clk 0:01:40.6]} 26. g6 {[%clk 0:01:58.2]} 26... hxg6 {[%clk
0:01:41]} 27. Ng5 {[%clk 0:01:55.3]} 27... Nxc2 {[%clk 0:01:39.4]} 28. Re2
{[%clk 0:01:44.7]} 28... Bxc4 {[%clk 0:01:39.8]} 29. Rxc2 {[%clk 0:01:29.2]}
29... Re8 {[%clk 0:01:36.8]} 30. dxc4 {[%clk 0:01:21.3]} 30... Rxe4 {[%clk
0:01:37.1]} 31. Bxe4 {[%clk 0:01:22.4]} 31... Qg4+ {[%clk 0:01:38.3]} 0-1

[Event "*** Qualifier 2: Titled Tuesday 3|2 Blitz"]
[Site "Chess.com"]
[Date "2017.04.11"]
[Round "1"]
[White "justantan"]
[Black "ViIIagra"]
[Result "0-1"]
[WhiteElo "2186"]
[BlackElo "2494"]
[TimeControl "180+2"]
[EndTime "13:05:35 PDT"]
[Termination "ViIIagra won by resignation"]

1. e4 {[%clk 0:02:54.7]} 1... c5 {[%clk 0:03:00.6]} 2. Nf3 {[%clk 0:02:20.3]}
2... d6 {[%clk 0:03:00.6]} 3. d4 {[%clk 0:02:19.8]} 3... cxd4 {[%clk 0:03:02.5]}
4. Nxd4 {[%clk 0:02:21.1]} 4... Nf6 {[%clk 0:03:04.2]} 5. Nc3 {[%clk 0:02:22.4]}
5... Nc6 {[%clk 0:03:05.9]} 6. Bg5 {[%clk 0:02:21.7]} 6... e6 {[%clk 0:03:07.2]}
7. Qd2 {[%clk 0:02:21.5]} 7... a6 {[%clk 0:03:08.9]} 8. O-O-O {[%clk 0:00:41.4]}
8... h6 {[%clk 0:03:08.7]} 9. Nxc6 {[%clk 0:00:40.5]} 9... bxc6 {[%clk
0:03:10.6]} 10. Bf4 {[%clk 0:00:42]} 10... d5 {[%clk 0:03:10.6]} 11. Qe3 {[%clk
0:00:43.5]} 11... Bb4 {[%clk 0:03:11.8]} 12. Be2 {[%clk 0:00:41.4]} 12... O-O
{[%clk 0:03:07.7]} 13. e5 {[%clk 0:00:42.5]} 13... Nh7 {[%clk 0:03:08.6]} 14. h4
{[%clk 0:00:43.2]} 14... Kh8 {[%clk 0:02:47.6]} 15. Rh3 {[%clk 0:00:42.5]} 15...
c5 {[%clk 0:02:45.7]} 16. Ne4 {[%clk 0:00:37.4]} 16... f5 {[%clk 0:02:34.8]} 17.
exf6 {[%clk 0:00:36.3]} 17... Nxf6 {[%clk 0:02:33.9]} 18. Nxc5 {[%clk
0:00:34.8]} 18... Bxc5 {[%clk 0:02:26.6]} 19. Qxc5 {[%clk 0:00:31.5]} 19... Ne4
{[%clk 0:02:28.1]} 20. Qe3 {[%clk 0:00:30.1]} 20... e5 {[%clk 0:02:27.1]} 21.
Bxe5 {[%clk 0:00:28.7]} 21... Qe7 {[%clk 0:02:24]} 22. Qxh6+ {[%clk 0:00:24.6]}
22... Kg8 {[%clk 0:02:25.1]} 23. Qc6 {[%clk 0:00:07.3]} 23... Qxe5 {[%clk
0:02:19.2]} 24. Rxd5 {[%clk 0:00:07.2]} 24... Qf4+ {[%clk 0:02:18.5]} 0-1